[Event "87th Spanish Championship 2022"]
[Site "Linares"]
[Date "2022.08.14"]
[Round "5.6"]
[White "Asis Gargatagli, Hipolito"]
[Black "Fernandez Garcia, Jose Luis"]
[Result "1/2-1/2"]
[ECO "C55"]
[WhiteElo "2514"]
[BlackElo "2362"]
[Annotator "TA"]
[PlyCount "95"]
[EventDate "2022.08.11"]
[EventType "swiss"]
[EventCountry "ESP"]
[SourceTitle "playchess.com"]
[Source "ChessBase"]
[SourceQuality "1"]
[TimeControl "5400+30"]

{[%evp 11,95,13,16,9,12,23,13,17,10,12,27,11,13,4,41,34,35,8,79,37,59,14,16,-9,69,73,105,105,109,117,111,114,92,45,222,197,215,131,127,133,133,140,135,139,160,153,137,96,96,96,96,96,98,91,96,76,76,76,76,76,76,52,76,76,78,8,8,0,0,0,0,0,0,0,0,0,0,-8,8,8,8,8,8,8,8,8]} 1. e4 {[%emt 0:00:03]} e5 {[%emt 0:03:15]} 2. Nf3 {[%emt 0:00:08]} Nc6 {[%emt 0:00:07]} 3. Bc4 {[%emt 0:00:06]} Nf6 {[%emt 0:00:08]} 4. d3 {[%emt 0:00:07]} Be7 {[%emt 0:00:05]} 5. O-O {[%emt 0:00:16]} O-O {[%emt 0:00:05]} 6. Nc3 {[%emt 0:00:12]} d6 {[%emt 0:00:46]} 7. a4 $1 {[%emt 0:00:06][%mdl 4] 7.a4 is the modern continuation. C55: Two Knights: 4 d3, 4 d4 exd4 5 e5 and Max Lange Attack.} Bg4 {[%emt 0:01:31]} 8. h3 {[%emt 0:00:15]} Bxf3 {[%emt 0:02:30]} 9. Qxf3 {[%emt 0:00:08]} Nd4 {[%emt 0:00:03][%csl LRc2,LRf3]} 10. Qd1 {[%emt 0:00:33]} c6 {[%emt 0:00:35] [#]} 11. Ba2 $146 {[%emt 0:01:02]} ({Predecessor:} 11. Ne2 Ne6 12. Ng3 d5 13. Ba2 g6 14. c3 Qd6 15. Bh6 Rfe8 16. Re1 Rad8 17. Qf3 {½-½ (27) Marquardt,G (2250)-Klewe,W (2254) ICCF email 2019}) 11... Ne6 {[%emt 0:00:52]} 12. Be3 {[%emt 0:13:21]} d5 {[%emt 0:14:06]} 13. exd5 {[%emt 0:01:56]} Nxd5 {[%emt 0:12:07]} 14. Bd2 {[%emt 0:34:50]} Bg5 {[%emt 0:15:47]} (14... Qd6 $11) 15. Nxd5 {[%emt 0:20:20]} cxd5 {[%emt 0:01:11]} 16. Bb4 {[%emt 0:04:01]} Re8 {[%emt 0:00:20]} 17. Re1 {[%emt 0:00:13]} Nd4 {[%emt 0:02:05]} ({Better is} 17... a5 $11 18. Ba3 Bf6) 18. Bc3 $14 {[%emt 0:01:19]} Nc6 {[%emt 0:08:39]} 19. Qf3 {[%emt 0:11:42]} d4 {[%emt 0:01:14]} 20. Bxf7+ {[%emt 0:00:50]} Kh8 {[%emt 0:00:08]} 21. Bxe8 {[%emt 0:00:04] White is more active.} Qxe8 {[%emt 0:00:06]} 22. Qf5 {[%emt 0:04:11]} (22. h4 $16 Bh6 23. Rad1 dxc3 24. bxc3) 22... h6 {[%emt 0:05:59] [#]} (22... Qd8 $1 $14) 23. h4 $1 $18 {[%emt 0:00:22]} Bf4 {[%emt 0:00:36]} 24. Qxf4 {[%emt 0:00:45]} exf4 {[%emt 0:00:36]} 25. Rxe8+ {[%emt 0:00:04]} Rxe8 {[%emt 0:00:09]} 26. Re1 {[%emt 0:01:12]} Rxe1+ {[%emt 0:01:13]} 27. Bxe1 $16 {[%emt 0:00:04][%mdl 4096] Endgame KB-KN} g5 {[%emt 0:00:03]} 28. hxg5 {[%emt 0:01:19]} hxg5 {[%emt 0:00:01]} 29. Kf1 {[%emt 0:02:20] Black must now prevent Ke2.} Kg7 {[%emt 0:00:07]} 30. c3 {[%emt 0:00:31]} Kg6 {[%emt 0:00:06]} 31. Ke2 {[%emt 0:00:16]} Kf5 {[%emt 0:00:14]} 32. f3 {[%emt 0:00:07]} a6 {[%emt 0:02:35]} 33. Bf2 {[%emt 0:00:17]} dxc3 {[%emt 0:00:05]} 34. bxc3 {[%emt 0:00:04] Strongly threatening c4.} b5 {[%emt 0:00:03]} 35. axb5 {[%emt 0:00:13]} axb5 {[%emt 0:00:01]} 36. Kd2 {[%emt 0:02:15]} Ke5 {[%emt 0:00:33]} 37. Bb6 {[%emt 0:00:28]} Kf5 {[%emt 0:03:09]} 38. d4 {[%emt 0:01:11]} ({White should try} 38. Bc5 $16) 38... Ne7 $1 $11 {[%emt 0:01:17] The position is equal.} 39. Bd8 {[%emt 0:00:33]} Nd5 {[%emt 0:00:06]} 40. Kd3 {[%emt 0:00:18]} g4 {[%emt 0:00:21]} 41. fxg4+ {[%emt 0:02:01]} Kxg4 {[%emt 0:00:05]} 42. Ke4 {[%emt 0:00:16]} Nxc3+ {[%emt 0:01:21]} 43. Ke5 {[%emt 0:00:03]} b4 {[%emt 0:00:53] [#] aiming for ...b3.} 44. Ba5 {[%emt 0:00:09]} Ne2 {[%emt 0:00:09] ( -> ...b3)} 45. Bxb4 {[%emt 0:00:16] Threatening mate with d5.} Nxd4 {[%emt 0:00:05]} 46. Kxd4 {[%emt 0:00:03] White wants to mate with Be1.} Kg3 {[%emt 0:00:05]} 47. Bd6 {[%emt 0:00:04]} Kxg2 {[%emt 0:00:03] Hoping for ...f3.} 48. Bxf4 {[%emt 0:00:03] White really could win this.  Weighted Error Value: White=0.14 (very precise) /Black=0.18 (very precise)} 1/2-1/2

[Event "87th Spanish Championship 2022"]
[Site "Linares"]
[Date "2022.08.14"]
[Round "5.7"]
[White "Alonso Garcia, Aaron"]
[Black "Lopez Martinez, Josep Manuel"]
[Result "1/2-1/2"]
[ECO "B90"]
[WhiteElo "2374"]
[BlackElo "2486"]
[Annotator "TA"]
[PlyCount "59"]
[EventDate "2022.08.11"]
[EventType "swiss"]
[EventCountry "ESP"]
[SourceTitle "playchess.com"]
[Source "ChessBase"]
[SourceQuality "1"]
[TimeControl "5400+30"]

{[%evp 9,59,18,18,-8,0,0,29,24,22,15,15,18,27,25,27,0,0,0,0,0,0,0,0,0,-7,0,5,0,45,-12,6,12,30,30,31,46,56,31,31,0,79,69,104,100,131,80,141,131,130,158,141,110]} 1. e4 {[%emt 0:05:14]} c5 {[%emt 0:01:25]} 2. Nf3 {[%emt 0:00:02]} d6 {[%emt 0:00:13]} 3. d4 {[%emt 0:00:02]} cxd4 {[%emt 0:00:11]} 4. Nxd4 {[%emt 0:00:01]} Nf6 {[%emt 0:00:11]} 5. Nc3 {[%emt 0:00:02]} a6 {[%emt 0:00:21]} 6. h4 {[%emt 0:02:02] B90: Sicilian Najdorf: Unusual White 6th moves, 6 Be3 Ng4 and 6 Be3 e5.} e5 {[%emt 0:07:09]} 7. Nb3 {[%emt 0:00:01]} Qc7 {[%emt 0:05:55] [#]} 8. Be3 $146 {[%emt 0:07:47] White has an edge.} ({Predecessor:} 8. Bg5 Nbd7 9. a4 h6 10. Be3 Nb6 11. Bxb6 Qxb6 12. Bc4 Qc7 13. Qd3 Be7 14. a5 {0-1 (44) Del Castilho,M (2304)-Song,G (2145) Tornelo INT 2021}) 8... Be6 {[%emt 0:03:20]} 9. Nd5 {[%emt 0:00:21]} Bxd5 {[%emt 0:02:27]} 10. exd5 {[%emt 0:00:02]} Nbd7 {[%emt 0:01:05]} 11. c4 {[%emt 0:00:02]} h5 {[%emt 0:01:10] Inhibits g4.} 12. Be2 {[%emt 0:01:42] Prevents Ng4.} g6 {[%emt 0:01:13]} 13. f3 {[%emt 0:02:33]} Bh6 {[%emt 0:01:17]} 14. Bxh6 {[%emt 0:01:03]} Rxh6 {[%emt 0:00:25]} 15. Qd2 {[%emt 0:04:40]} Rh8 {[%emt 0:00:49]} 16. Na5 {[%emt 0:03:45][%cal Bb3a5,Ba5c6,Bc6b4,Bb4c2,Bc2a3,Ba3b5][%mdl 32]} Kf8 {[%emt 0:02:08]} 17. O-O-O {[%emt 0:07:15]} Kg7 {[%emt 0:04:50]} 18. Kb1 {[%emt 0:00:09]} Rae8 {[%emt 0:13:26]} 19. Qc3 {[%emt 0:01:56]} (19. g4 $14) 19... b6 {[%emt 0:06:38]} (19... e4 {is more complex.} 20. f4 Nc5 21. Rhf1 e3) 20. Nc6 {[%emt 0:00:12]} Nb8 {[%emt 0:00:12]} 21. Nb4 $1 {[%emt 0:16:45]} a5 {[%emt 0:14:41]} 22. Nc2 {[%emt 0:00:25]} Na6 {[%emt 0:00:25]} 23. Na3 {[%emt 0:02:21]} Qd7 {[%emt 0:04:22] Against g4} 24. Nb5 {[%emt 0:01:16][%cal Og2g4]} Rc8 {[%emt 0:07:36]} (24... Nc7 $11) 25. Qe3 $16 {[%emt 0:08:26]} Nc5 {[%emt 0:02:51]} 26. g4 {[%emt 0:04:43]} Rcd8 {[%emt 0:01:22][%cal Rh5g4]} 27. g5 {[%emt 0:02:55]} ({White should try} 27. Rdf1) 27... Ng8 {[%emt 0:01:17] [#]} (27... Ne8 $142) 28. Bf1 $1 {[%emt 0:00:01] White is more active.} Ne7 {[%emt 0:02:53]} 29. Bh3 {[%emt 0:00:02]} Nf5 {[%emt 0:00:22]} 30. Qc3 {[%emt 0:01:12] Weighted Error Value: White=0.11 (very precise) /Black=0.15 (very precise)} 1/2-1/2

[Event "87th Spanish Championship 2022"]
[Site "Linares"]
[Date "2022.08.14"]
[Round "5.8"]
[White "Gines Esteo, Pedro Antonio"]
[Black "Vega Gutierrez, Sabrina"]
[Result "1-0"]
[ECO "D37"]
[WhiteElo "2455"]
[BlackElo "2366"]
[Annotator "TA"]
[PlyCount "95"]
[EventDate "2022.08.11"]
[EventType "swiss"]
[EventCountry "ESP"]
[SourceTitle "playchess.com"]
[Source "ChessBase"]
[SourceQuality "1"]
[TimeControl "5400+30"]

{[%evp 9,95,18,40,46,42,39,50,47,43,34,66,26,33,26,29,23,49,13,31,20,81,46,119,120,119,118,123,108,92,91,108,88,98,0,114,0,100,91,81,83,110,77,204,204,227,212,196,208,217,177,224,141,158,134,241,258,250,238,243,208,300,287,441,364,431,426,519,280,284,273,276,262,280,271,460,539,523,527,526,525,511,514,630,637,627,613,620,601]} 1. d4 {[%emt 0:02:04]} d5 {[%emt 0:00:05]} 2. c4 {[%emt 0:00:17]} e6 {[%emt 0:00:07]} 3. Nf3 {[%emt 0:00:28]} Nf6 {[%emt 0:00:14]} 4. Nc3 {[%emt 0:01:43]} dxc4 {[%emt 0:00:48]} 5. e4 {[%emt 0:02:43][%cal Be2e4,Be4e5][%mdl 32]} b5 {[%emt 0:00:11]} 6. e5 {[%emt 0:01:11] D24: Queen's Gambit Accepted: 3 Nf3 Nf6 4 Nc3.} Nd5 {[%emt 0:00:07]} 7. Nxb5 {[%emt 0:00:04]} Nb6 {[%emt 0:00:15]} 8. Be2 {[%emt 0:01:55] White is slightly better.} Nc6 {[%emt 0:01:05]} 9. Be3 {[%emt 0:00:19]} Be7 {[%emt 0:03:09]} 10. a3 {[%emt 0:05:49]} Rb8 {[%emt 0:03:21]} 11. Qc2 {[%emt 0:00:44] [#]} Bb7 $146 {[%emt 0:09:25]} ({Predecessor:} 11... Ba6 12. Nc3 Na5 13. Rd1 Qd7 14. h4 h6 15. Rh3 Bb7 16. Rg3 Kf8 17. d5 Nxd5 18. Bxa7 {0-1 (39) Yilmaz,M (2631)-Maghsoodloo,P (2699) Chess.com INT 2022}) 12. h4 {[%emt 0:08:37][%cal Bh2h4,Bh4h5][%mdl 32]} h6 {[%emt 0:04:37]} 13. Nc3 {[%emt 0:19:34]} (13. Bxc4 a6 14. d5 Nxc4 15. dxc6 axb5 $11) 13... Na5 {[%emt 0:00:38]} 14. Rh3 {[%emt 0:01:06][%cal Bh1h3,Bh3g3,Bg3g4][%mdl 32]} Bc6 {[%emt 0:07:43]} (14... Nd5 $11) 15. Rd1 {[%emt 0:08:57]} Qc8 {[%emt 0:11:49]} (15... Qd7 $14) 16. Rg3 $16 {[%emt 0:02:56]} Kf8 {[%emt 0:12:22]} 17. h5 {[%emt 0:02:06]} Qb7 {[%emt 0:01:35]} 18. Rg4 {[%emt 0:00:35] White is more active.} Nd5 {[%emt 0:04:23]} 19. Nxd5 {[%emt 0:02:20]} Bxd5 {[%emt 0:00:11]} 20. Bd2 {[%emt 0:03:29]} Nb3 {[%emt 0:12:03]} 21. Be3 {[%emt 0:00:15]} Na5 $1 {[%emt 0:00:50]} 22. Bd2 {[%emt 0:08:57]} Nb3 {[%emt 0:00:04]} 23. Bc3 $1 {[%emt 0:00:04]} Qc6 {[%emt 0:05:02]} 24. Kf1 {[%emt 0:02:02]} Qa4 {[%emt 0:00:09]} 25. Ne1 {[%emt 0:00:56]} c5 {[%emt 0:02:44] This move loses the game for Black.} (25... Bg5 $16) 26. Bf3 $1 $18 {[%emt 0:08:01]} Rd8 {[%emt 0:03:33]} (26... cxd4 27. Bxd5 Qa6 28. Bf3 $1 dxc3 29. Qxc3) 27. dxc5 {[%emt 0:05:30]} Nxc5 {[%emt 0:03:14] [#]} 28. Qe2 $1 {[%emt 0:04:32]} Qc6 {[%emt 0:00:48]} 29. Kg1 {[%emt 0:03:37]} Na4 {[%emt 0:09:57]} (29... Rd7 {keeps fighting.} 30. Rgd4 Bxf3 31. Nxf3 Nd3) 30. Bb4 {[%emt 0:00:11]} Bxb4 {[%emt 0:00:40]} 31. axb4 {[%emt 0:00:07][%cal Og4c4] Rxc4! is the strong threat.} Ke7 {[%emt 0:00:15]} (31... Nb6 $16 {is a better defense.}) 32. Ra1 {[%emt 0:02:02] Black must now prevent Bxd5.} (32. Rxg7 Kf8 33. Rg4 Nb6) 32... Nb6 {[%emt 0:02:43]} 33. Rxg7 {[%emt 0:00:58]} Rd7 {[%emt 0:00:21]} 34. Qe3 {[%emt 0:00:31]} Kd8 {[%emt 0:02:18]} (34... Bxf3 $142 35. Nxf3 Nd5) 35. Qf4 {[%emt 0:00:25]} Bxf3 {[%emt 0:00:30]} (35... Ke8 $142 36. Be2 Qc7) 36. Qf6+ {[%emt 0:00:58]} (36. Nxf3 Nd5 37. Qe4 Ke8 $18) (36. Qxf3 Qxf3 37. Nxf3 Ke7 $16) (36. gxf3 Nd5 37. Qh4+ Kc8 $16) 36... Kc8 {[%emt 0:00:09]} 37. Rxf7 {[%emt 0:01:00]} (37. Qxf3 Qb7 38. Qxb7+ Kxb7 $16) (37. Nxf3 c3 38. bxc3 (38. Rxf7 cxb2 39. Re1 Rg8 $15) 38... Nd5 $16) (37. gxf3 Nd5 38. Qh4 Kb8 $11) 37... Rg8 {[%emt 0:00:54][%cal Rf3g2]} 38. Rf8+ {[%emt 0:01:03]} ({Weaker is} 38. Qxf3 Qxf3 39. Rxf3 Nd5 $18) 38... Rxf8 {[%emt 0:00:25]} 39. Qxf8+ {[%emt 0:00:01]} Rd8 {[%emt 0:00:40]} 40. Qxf3 {[%emt 0:00:06]} Qxf3 {[%emt 0:00:04]} 41. Nxf3 {[%emt 0:00:04][%mdl 4096] Endgame KRN-KRN} ({Less strong is} 41. gxf3 Rd2 $14) 41... Rd3 $2 {[%emt 0:00:59]} (41... Kb7 {was called for.} 42. g4 Nd5) 42. Rxa7 {[%emt 0:00:34] White is clearly winning.} Rb3 {[%emt 0:00:24]} 43. Nd4 {[%emt 0:01:26]} Rxb2 {[%emt 0:00:14]} 44. Nxe6 {[%emt 0:00:01]} Nd5 {[%emt 0:00:09]} 45. Ra5 {[%emt 0:00:24]} Nxb4 {[%emt 0:00:51]} 46. Rc5+ {[%emt 0:00:13]} Kd7 {[%emt 0:00:01]} 47. Nf8+ {[%emt 0:00:05]} Ke8 {[%emt 0:00:11]} 48. Ng6 {[%emt 0:00:37] Weighted Error Value: White=0.21 (precise) /Black=0.33} 1-0

[Event "87th Spanish Championship 2022"]
[Site "Linares"]
[Date "2022.08.14"]
[Round "5.9"]
[White "Gomez Dieguez, David"]
[Black "Narciso Dublan, Marc"]
[Result "0-1"]
[ECO "B03"]
[WhiteElo "2372"]
[BlackElo "2461"]
[Annotator "TA"]
[PlyCount "60"]
[EventDate "2022.08.11"]
[EventType "swiss"]
[EventCountry "ESP"]
[SourceTitle "playchess.com"]
[Source "ChessBase"]
[SourceQuality "1"]
[TimeControl "5400+30"]

{[%evp 12,60,46,45,40,19,46,30,45,-15,-18,-40,-56,-73,7,-31,-33,-58,0,-32,79,74,69,74,75,95,68,36,45,46,46,-264,-265,-295,-291,-531,-554,-586,-601,-819,-712,-6423,-2200,-1925,-5806,-5343,-5237,-2647,-2512,-1968,-1638]} 1. e4 {[%emt 0:00:04][%cal Be2e4,Be4e5][%mdl 32]} Nf6 {[%emt 0:00:22]} 2. e5 {[%emt 0:00:04]} Nd5 {[%emt 0:00:08]} 3. d4 {[%emt 0:00:05][%cal Bd2d4,Bd4d5][%mdl 32]} d6 {[%emt 0:00:08]} 4. c4 {[%emt 0:00:02]} Nb6 {[%emt 0:00:08]} 5. f4 {[%emt 0:00:04]} g6 {[%emt 0:00:37]} 6. Nc3 {[%emt 0:00:10]} Bg7 {[%emt 0:00:11]} 7. Be3 $1 {[%emt 0:00:14]} Be6 $1 {[%emt 0:00:21][%mdl 4] is recently more successful than 7...0-0. B03: Alekhine's Defence: Four Pawns Attack.} 8. d5 {[%emt 0:00:03]} Bc8 {[%emt 0:00:18]} 9. Nf3 {[%emt 0:03:16]} O-O {[%emt 0:00:55] White has an edge.} 10. h3 {[%emt 0:03:11]} (10. h4 $14) 10... e6 $11 {[%emt 0:12:36] [#]} 11. Qd2 $146 {[%emt 0:06:54]} ({Predecessor:} 11. Be2 dxe5 12. fxe5 exd5 13. cxd5 N8d7 14. Bf4 Re8 15. Bg5 f6 16. exf6 Nxf6 17. Qb3 {0-1 (27) Sonnet,J-Daillet,E France 1989}) 11... exd5 {[%emt 0:03:28]} 12. cxd5 {[%emt 0:01:14] [#]} N8d7 {[%emt 0:03:28]} (12... dxe5 $1 $17 13. fxe5 N8d7) 13. exd6 {[%emt 0:13:20]} (13. a4 $5 {[%cal Ra4a5]}) 13... cxd6 {[%emt 0:00:57]} (13... Bxc3 {feels hotter.} 14. bxc3 Re8 15. dxc7 Qe7) 14. g4 {[%emt 0:10:18][%cal Bg2g4,Bg4g5][%mdl 32]} Nc5 {[%emt 0:15:47]} (14... Bxc3 $15 15. bxc3 Qe7) 15. O-O-O {[%emt 0:14:39]} (15. Bxc5 $5 dxc5 16. O-O-O $11) 15... f5 {[%emt 0:03:36]} (15... Re8 $15 {stays ahead.}) 16. Bxc5 $16 {[%emt 0:05:19]} dxc5 {[%emt 0:00:17]} 17. g5 {[%emt 0:00:23]} Re8 {[%emt 0:03:16]} 18. h4 {[%emt 0:08:14]} Bd7 {[%emt 0:10:01]} 19. h5 {[%emt 0:01:13] Strongly threatening hxg6.} (19. Ne5 $5) 19... Qe7 {[%emt 0:06:33]} 20. hxg6 {[%emt 0:05:06]} hxg6 {[%emt 0:00:11]} 21. Bb5 $2 {[%emt 0:04:54][%mdl 8192] White does not recover from this.} (21. Rh4 $14 {keeps the upper hand.}) 21... Bxb5 $19 {[%emt 0:03:27]} 22. Nxb5 {[%emt 0:00:34][%cal Of3e5] aiming for Ne5!} Nc4 {[%emt 0:01:59][%csl LRb2,LRd2][%cal Bb6c4,Bc4b2,Bb2d1,Bd1f2][%mdl 32] Prevents Ne5.} 23. Qc2 {[%emt 0:08:59] [#]} (23. Qh2 Bxb2+ 24. Kb1 Qe4+ 25. Qc2) 23... Qe3+ $1 {[%emt 0:06:15] Black is clearly winning.} 24. Kb1 {[%emt 0:01:04]} Nxb2 {[%emt 0:00:20]} 25. Ne5 {[%emt 0:11:20]} Nxd1 {[%emt 0:01:21]} 26. Qh2 {[%emt 0:01:48]} Rxe5 {[%emt 0:06:12]} 27. fxe5 {[%emt 0:00:12]} Nf2 {[%emt 0:10:20]} 28. Qh7+ {[%emt 0:00:05]} Kf8 {[%emt 0:00:02] ( -> ...Qe4+)} 29. Nc7 {[%emt 0:01:00]} Qe4+ {[%emt 0:00:15]} 30. Kc1 {[%emt 0:00:09]} Qxh1+ {[%emt 0:00:06] Weighted Error Value: White=0.85/Black=0.34} 0-1

[Event "87th Spanish Championship 2022"]
[Site "Linares"]
[Date "2022.08.14"]
[Round "5.10"]
[White "Espinosa Aranda, Angel"]
[Black "Masague Artero, Guerau"]
[Result "1-0"]
[ECO "B30"]
[WhiteElo "2439"]
[BlackElo "2319"]
[Annotator "TA"]
[PlyCount "57"]
[EventDate "2022.08.11"]
[EventType "swiss"]
[EventCountry "ESP"]
[SourceTitle "playchess.com"]
[Source "ChessBase"]
[SourceQuality "1"]
[TimeControl "5400+30"]

{[%evp 14,57,20,28,24,35,43,54,46,47,54,42,53,56,55,58,50,45,64,70,69,69,69,62,68,60,296,295,362,377,551,537,405,221,221,221,208,210,208,202,343,356,329,263,264,243]} 1. e4 {[%emt 0:01:43]} c5 {[%emt 0:00:28]} 2. Nf3 {[%emt 0:00:23]} Nc6 {[%emt 0:00:05]} 3. Bb5 {[%emt 0:00:21]} d6 {[%emt 0:03:31]} 4. O-O {[%emt 0:01:44]} Bd7 {[%emt 0:00:42]} 5. Re1 {[%emt 0:01:09]} a6 {[%emt 0:00:22]} 6. Bf1 {[%emt 0:00:34]} Nf6 {[%emt 0:00:10]} 7. c3 {[%emt 0:00:41][%cal Bc2c3,Bc3d4][%mdl 32]} Bg4 {[%emt 0:00:09]} 8. d4 {[%emt 0:00:44]} Bxf3 {[%emt 0:01:30] B51: Sicilian: Moscow Variation (3 Bb5+) without 3...Bd7.} 9. gxf3 {[%emt 0:00:06]} cxd4 {[%emt 0:06:55] now scores much better than the old 9...g5.} 10. cxd4 {[%emt 0:00:19]} d5 {[%emt 0:00:09] White is slightly better.} 11. Nc3 {[%emt 0:01:50] Hoping for Bg5.} e6 {[%emt 0:05:26]} 12. Bg5 $1 {[%emt 0:01:04] Strongly threatening exd5.} Be7 {[%emt 0:04:43]} 13. Bxf6 {[%emt 0:00:25]} Bxf6 {[%emt 0:15:10]} 14. exd5 {[%emt 0:01:01]} Nxd4 {[%emt 0:00:13]} 15. Re4 {[%emt 0:00:14]} Qb6 {[%emt 0:00:43] [#]} 16. Qa4+ $146 {[%emt 0:04:00]} ({Predecessor:} 16. dxe6 Nxe6 17. Nd5 Qd8 18. Qa4+ b5 19. Nxf6+ gxf6 20. Qa3 f5 21. Re3 Qb6 22. Bh3 Rg8+ 23. Kf1 b4 24. Qa4+ Kf8 25. Bxf5 Nf4 26. Qd7 Rg2 27. Qe7+ {½-½ (27) Dobrica,D (2314)-Heinke,R (2335) ICCF email 2008}) 16... Kf8 {[%emt 0:00:52]} 17. Rd1 {[%emt 0:00:08][%cal Re4d4]} Nxf3+ {[%emt 0:10:17]} 18. Kg2 {[%emt 0:00:13]} Qxb2 {[%emt 0:00:05]} 19. Re3 {[%emt 0:04:16][%cal Be4e3,Be3g3,Bg3e3][%mdl 32]} Nd2 {[%emt 0:11:31] [#] This move loses the game for Black.} (19... Bxc3 $2 20. dxe6 Bf6 21. Rxf3 fxe6 22. Rd7 $18 (22. Qd7 Qe5 $16)) (19... Nh4+ $14 20. Kg1 b5 21. Nxb5 Nf5) 20. dxe6 $1 $18 {[%emt 0:10:23][%cal Oa4d7] Qd7! would kill now.} fxe6 {[%emt 0:04:49]} (20... Nxf1 21. Rxf1) 21. Qd7 {[%emt 0:03:16]} Rd8 {[%emt 0:10:34] [#]} (21... Qb6 {keeps fighting.} 22. Rxd2 Rd8 23. Qxe6 Qxe6 24. Rxd8+ Bxd8 25. Rxe6 g6) 22. Qxe6 $1 {[%emt 0:00:13][%cal Of1c4] Intending Bc4! and mate.} Qc2 {[%emt 0:00:08] [#]} 23. Bc4 {[%emt 0:34:35]} Qg6+ {[%emt 0:03:57]} 24. Rg3 $1 {[%emt 0:00:55] The board is on fire.} ({Much less strong is} 24. Kh1 $6 Nxc4 25. Rxd8+ (25. Qxc4 Rxd1+ 26. Nxd1 Qf5 $16) 25... Bxd8 $16) 24... Qe8 {[%emt 0:01:26]} 25. Qxe8+ {[%emt 0:01:23]} Kxe8 {[%emt 0:03:19] [#]} 26. Bd5 {[%emt 0:00:45]} Rc8 {[%emt 0:00:36] [#]} (26... Bxc3 $142 27. Re1+ Kf8) 27. Re3+ $1 {[%emt 0:01:27]} (27. Rxd2 Rxc3 28. Bxb7 Ke7 $14) 27... Kd8 {[%emt 0:02:05]} 28. Ne2 {[%emt 0:04:21]} (28. Bxb7 Rxc3 29. Rxd2+ (29. Bxa6 Rc2 $14) 29... Kc7 30. Bxa6 Rxe3 31. fxe3 Kb6 $14) 28... Rc2 {[%emt 0:08:12]} 29. Bb3 {[%emt 0:00:10] Weighted Error Value: White=0.10 (very precise) /Black=0.51} ({Weaker is} 29. Bxb7 Re8 $14) 1-0

[Event "87th Spanish Championship 2022"]
[Site "Linares"]
[Date "2022.08.14"]
[Round "5.11"]
[White "Macias Pino, Diego"]
[Black "Merario Alarcon, Andres"]
[Result "1/2-1/2"]
[ECO "C50"]
[WhiteElo "2355"]
[BlackElo "2418"]
[Annotator "TA"]
[PlyCount "61"]
[EventDate "2022.08.11"]
[EventType "swiss"]
[EventCountry "ESP"]
[SourceTitle "playchess.com"]
[Source "ChessBase"]
[SourceQuality "1"]
[TimeControl "5400+30"]

{[%evp 14,61,27,10,21,0,4,0,0,0,0,3,8,0,0,0,8,8,9,8,25,21,27,22,40,26,19,0,0,0,0,-27,-27,-70,-69,-58,-62,-68,-68,-70,-55,-83,0,0,0,0,0,0,0,0]} 1. e4 {[%emt 0:00:01]} e5 {[%emt 0:02:55]} 2. Nf3 {[%emt 0:00:07]} Nc6 {[%emt 0:00:08]} 3. Bc4 {[%emt 0:00:05]} Nf6 {[%emt 0:00:31]} 4. d3 {[%emt 0:00:04]} Bc5 {[%emt 0:00:12]} 5. c3 {[%emt 0:00:05]} d6 {[%emt 0:00:15]} 6. O-O {[%emt 0:00:05]} h6 {[%emt 0:00:23]} 7. Re1 {[%emt 0:00:22]} O-O {[%emt 0:00:52]} 8. h3 {[%emt 0:00:04]} a5 {[%emt 0:00:29] 8...Bb6 is the recent fashion. C54: Giuoco Piano: 4 c3 Nf6, main lines with 5 d4 and 5 d3.} 9. d4 {[%emt 0:01:17]} Bb6 {[%emt 0:01:08][%cal Of6e4]} 10. Bb3 {[%emt 0:04:56]} Re8 {[%emt 0:01:25]} 11. Bc2 {[%emt 0:00:26]} exd4 {[%emt 0:18:33]} 12. cxd4 {[%emt 0:00:44]} Nb4 $1 {[%emt 0:06:58]} 13. Nc3 {[%emt 0:00:16]} Nxc2 {[%emt 0:00:05]} 14. Qxc2 {[%emt 0:00:03]} d5 {[%emt 0:06:40]} 15. e5 {[%emt 0:00:22]} Ne4 {[%emt 0:00:11]} 16. Be3 {[%emt 0:00:03]} ({Much weaker is} 16. Nxe4 Bf5 $15) 16... Bf5 {[%emt 0:04:24]} 17. Nd2 {[%emt 0:00:16][%cal Rd2e4]} Qd7 {[%emt 0:09:46][%cal Oe4f2]} 18. Ndxe4 {[%emt 0:06:58]} dxe4 {[%emt 0:00:31] [#]} 19. Rad1 $146 {[%emt 0:11:38]} ({Predecessor:} 19. Nxe4 Bg6 20. Rad1 Qd5 21. f3 Qxa2 22. d5 Rxe5 23. Bxb6 cxb6 24. d6 Rc5 25. Qd2 {1-0 (39) Nasuta,G (2511)-Kosakowski,J (2435) Kruszwica 2022}) 19... a4 {[%emt 0:00:20]} 20. Nxe4 {[%emt 0:04:56]} Ra5 {[%emt 0:08:42]} 21. f3 {[%emt 0:06:33]} Rd5 {[%emt 0:00:18][%cal Rb6d4]} 22. Qf2 {[%emt 0:01:01] [#]} Rexe5 $1 {[%emt 0:05:15]} 23. Nc3 {[%emt 0:27:49][%cal Be4c3,Bc3d5,Bd5e3,Be3g4,Bg4e5][%mdl 32] [#]} (23. Kh2 Bxe4) 23... Rxe3 {[%emt 0:04:54]} 24. Qxe3 {[%emt 0:00:05]} Bxd4 {[%emt 0:02:54] This bishop pair is nice.} 25. Nxd5 {[%emt 0:00:07]} Bxe3+ {[%emt 0:00:05]} 26. Nxe3 {[%emt 0:00:37]} Bd3 {[%emt 0:02:14]} 27. Ng4 {[%emt 0:02:44] Black must now prevent Nf2.} c5 {[%emt 0:03:47]} (27... Qb5 $17 {...Bc4 is the strong threat.} 28. a3 Bc4) 28. Ne5 {[%emt 0:00:36] Inhibits Bc4. The position is equal.} Qd4+ {[%emt 0:00:07]} 29. Kh1 {[%emt 0:00:27]} c4 {[%emt 0:00:11]} 30. Nxd3 {[%emt 0:00:31]} cxd3 {[%emt 0:00:08]} 31. Rd2 {[%emt 0:00:07] Weighted Error Value: White=0.10 (very precise) /Black=0.06 (flawless)} 1/2-1/2